Workbook

Sheet Services-Produits
A1: Produit | B1: Price
A2: Bactoflor | B2: 69.8
A3: Biotin | B3: 37.25
A4: Biotin + NaCl | B4: 37.25
A5: B-Kompleks | B5: 46.8
A6: Black cumin capsules | B6: 34.8
A7: Bosvene Akba | B7: 215.11
A8: Cholin Inject | B8: 43
A9: C-Intercell 650 mg Vitamin C, 90 Kapseln | B9: 27.99
A10: Curcumin + NaCl 0,9% | B10: 116.22
A11: Curcumin 150 mg | B11: 229.2
A12: curcumin 75 mg | B12: 116.22
A13: E-Inject | B13: 41.2
A14: Epinativ Injection | B14: 133.61
A15: Face treatment Chin contouring | B15: 600
A16: Fermanose | B16: 46.2
A17: Fiber-Intercell | B17: 40.49
A18: Gut Microbiome Therapy | B18: 6912.5
A19: Gynophilus | B19: 19.8
A20: Gynophylus | B20: 19.8
A21: Hepar | B21: 43.7
A22: Hydroxiprolin | B22: 68.9
A23: Hypericin | B23: 198.7
A24: Immunocare | B24: 220
A25: Immunocare, personalised | B25: 195.7
A26: Infraorbital | B26: 600
A27: Infusion: Curcumin 75 mg | B27: 116.22
A28: Infusion: Nicotiamide | B28: 179.8
A29: Infusion: Shoga Öl | B29: 670
A30: Jantung (Herz) | B30: 584.5
A31: K2 & D3 | B31: 34.7
A32: Kantong kemih (Harnblase) | B32: 381.35
A33: Laetia | B33: 45.3
A34: Liserotota | B34: 345.3
A35: Liv 52 | B35: 14.9
A36: Magentropfen | B36: 23
A37: Magnesium | B37: 25.45
A38: Magnesium 1000 mg | B38: 34.68
A39: Magnesium Intercell | B39: 15.1
A40: Memoserin 90 Kapseln | B40: 67.7
A41: Microbiome body lotion | B41: 29.9
A42: Microcare 4 months | B42: 571.05
A43: Microniome face serum | B43: 69.9
A44: Muskulatur (Otot) | B44: 286.4
A45: NAD+ | B45: 219.66
A46: Neuro Amino | B46: 163.2
A47: Nicotinamide | B47: 179.8
A48: NMN, Rapamune, Sildenafil & Tadalafil | B48: 67.8
A49: Oliphenolia | B49: 183.51
A50: Oliphenolia + NaCl 0,9% 150 ml | B50: 183.51
A51: Omega 7 | B51: 81.35
A52: Otak kecil (Kleinhirn) | B52: 288
A53: Ozempic | B53: 129.8
A54: Phenylalanine | B54: 106.4
A55: Phospolipide | B55: 31.28
A56: Prodigest | B56: 72.35
A57: Q10 i.v. sensitive | B57: 178.8
A58: Reservatrol + NaCl 0,9% 300 ml | B58: 178
A59: Resveratrol | B59: 178
A60: Riboflavin | B60: 127.4
A61: RNA | B61: 516.7
A62: RNA Heart | B62: 516.7
A63: RNA Injections 4 vials | B63: 516.7
A64: RNA Thymus | B64: 516.7
A65: Salvans | B65: 13.05
A66: Selenium | B66: 41.6
A67: Senolytics mixture | B67: 670
A68: Senolytics Mixture | B68: 670
A69: Spermidin | B69: 182.35
A70: Tadalafil-Mepha 10 mg | B70: 115
A71: Tadalafil-Mepha 2.5 mg | B71: 115
A72: Tadalafil-Mepha 5 mg | B72: 115
A73: Tamsulosin Retard | B73: 59.58
A74: Testicle | B74: 372.45
A75: Thymus | B75: 516.7
A76: Ventrisana | B76: 19.2
A77: Vistabel 3 zones | B77: 750
A78: Vit D3 | B78: 37
A79: Vit D3 | B79: 29.8
A80: Vit E Inject I.M.
A81: Vit, B Komplex | B81: 46.8
A82: Vit. C, Zn | B82: 21.4
A83: Vit. E IM
A84: Vit-C Intercell | B84: 27.99
A85: Xanax | B85: 42.7
A86: Zentra inject | B86: 60

Sheet Reference
A3: Invoice: 55H-0231104
A4: 22.12.2023
C5: Treatment by
C6: Dr. Roger Gmür
C7: Zürich
A14: Description | B14: Qty | C14: Price | D14: Amount
A17: Gut Microbiome Therapy | B17: 4 | C17: =IFERROR(VLOOKUP(A17,'Services-Produits'!A$2:B124,2,FALSE),"") -> 6912.5 | D17: =IFERROR(B17*C17,"") -> 27650
A18: Vit D3 | B18: 1 | C18: =IFERROR(VLOOKUP(A18,'Services-Produits'!A$2:B125,2,FALSE),"") -> 37 | D18: =IFERROR(B18*C18,"") -> 37
A19: Bactoflor | B19: 1 | C19: =IFERROR(VLOOKUP(A19,'Services-Produits'!A$2:B126,2,FALSE),"") -> 69.8 | D19: 69.8
A20: E-Inject | B20: 1 | C20: =IFERROR(VLOOKUP(A20,'Services-Produits'!A$2:B127,2,FALSE),"") -> 41.2 | D20: 41.2
A21: Neuro Amino | B21: 8 | C21: =IFERROR(VLOOKUP(A21,'Services-Produits'!A$2:B128,2,FALSE),"") -> 163.2 | D21: 1305.6
A22: Vit, B Komplex | B22: 1 | C22: =IFERROR(VLOOKUP(A22,'Services-Produits'!A$2:B129,2,FALSE),"") -> 46.8 | D22: 46.8
A23: Fermanose | B23: 2 | C23: =IFERROR(VLOOKUP(A23,'Services-Produits'!A$2:B130,2,FALSE),"") -> 46.2 | D23: 92.4
A24: Hydroxiprolin | B24: 1 | C24: =IFERROR(VLOOKUP(A24,'Services-Produits'!A$2:B131,2,FALSE),"") -> 68.9 | D24: 68.9
A25: Gynophilus | B25: 1 | C25: =IFERROR(VLOOKUP(A25,'Services-Produits'!A$2:B132,2,FALSE),"") -> 19.8 | D25: 19.8
A26: Magentropfen | B26: 1 | C26: =IFERROR(VLOOKUP(A26,'Services-Produits'!A$2:B133,2,FALSE),"") -> 23 | D26: 23
A27: Magnesium 1000 mg | B27: 1 | C27: =IFERROR(VLOOKUP(A27,'Services-Produits'!A$2:B134,2,FALSE),"") -> 34.68 | D27: 34.68
A28: Q10 i.v. sensitive | B28: 5 | C28: =IFERROR(VLOOKUP(A28,'Services-Produits'!A$2:B135,2,FALSE),"") -> 178.8 | D28: 894
A29: Resveratrol | B29: 8 | C29: =IFERROR(VLOOKUP(A29,'Services-Produits'!A$2:B136,2,FALSE),"") -> 178 | D29: 1424
C30: =IFERROR(VLOOKUP(A30,'Services-Produits'!A$2:B138,2,FALSE),"") -> 
C31: =IFERROR(VLOOKUP(A31,'Services-Produits'!A$2:B139,2,FALSE),"") -> 
C32: =IFERROR(VLOOKUP(A32,'Services-Produits'!A$2:B139,2,FALSE),"") -> 
C33: =IFERROR(VLOOKUP(A33,'Services-Produits'!A$2:B140,2,FALSE),"") -> 
C34: =IFERROR(VLOOKUP(A34,'Services-Produits'!A$2:B141,2,FALSE),"") -> 
C35: =IFERROR(VLOOKUP(A35,'Services-Produits'!A$2:B142,2,FALSE),"") -> 
C36: =IFERROR(VLOOKUP(A36,'Services-Produits'!A$2:B143,2,FALSE),"") -> 
A38: Total in CHF | D38: =SUM(D17:D37) -> 31707.18

Sheet Patients
A1: Wisnu Hermawan | D1: Jakarta | E1: Indonesia | F1: M | G1: 1972-02-16
A2: Yuldi Yusman | D2: Jakarta | E2: Indonesia | F2: M | G2: 1975-07-29
A3: Erminda Melayeni | D3: Jakarta | E3: Indonesia | F3: F | G3: 1975-10-25
A4: Agus Andriyanto | D4: Jakarta | E4: Indonesia | F4: M | G4: 1967-02-16
A5: Evy Celiyanti | D5: Jakarta | E5: Indonesia | F5: F | G5: 1972-03-07
A6: Samuel Bob | D6: Jakarta | E6: Indonesia | F6: M | G6: 1974-01-04
A7: Muljadi Tjahjono | D7: Jakarta | E7: Indonesia | F7: M | G7: 1965-07-22
A8: Wahyu Widada | D8: Jakarta | E8: Indonesia | F8: M | G8: 1969-09-11
A9: Sri Wahyuswinta | D9: Jakarta | E9: Indonesia | F9: F | G9: 1969-04-04
A10: Adex Yudiswan | D10: Jakarta | E10: Indonesia | F10: M | G10: 1974-12-03
A11: Herman Herry Adranacus | D11: Jakarta | E11: Indonesia | F11: M | G11: 1962-11-26
A12: Muhamad Mardiono | D12: Jakarta | E12: Indonesia | F12: M | G12: 1957-07-11
A13: Armand Wahyudi Hartono | D13: Jakarta | E13: Indonesia | F13: M | G13: 1975-05-20
A14: Deddy Prasetyo | D14: Jakarta | E14: Indonesia | F14: M | G14: 1968-07-26
A15: Martha Dwi Maryani | D15: Jakarta | E15: Indonesia | F15: F | G15: 1969-05-21
A16: Dobias Iskandar | D16: Jakarta | E16: Indonesia | F16: M | G16: 1965-11-16
A17: Yenny Wijaya | D17: Jakarta | E17: Indonesia | F17: F | G17: 1973-03-16
A18: Samuel Rusli | D18: Jakarta | E18: Indonesia | F18: M | G18: 1968-04-01
A19: Yulia Gunawan | D19: Jakarta | E19: Indonesia | F19: F | G19: 1983-01-06
A20: Salim Lan Jaya Liem | D20: Jakarta | E20: Indonesia | F20: M | G20: 1971-06-01
A21: Chan Choi Moi | D21: Jakarta | E21: Indonesia | F21: F | G21: 1972-04-28
A22: Tan Kim Siong | D22: Jakarta | E22: Indonesia | F22: M | G22: 1970-11-09
A23: Tan Siew Chang | D23: Jakarta | E23: Indonesia | F23: F | G23: 1967-01-13

Sheet Samuel Bob
A3: Invoice: 55H-0231104
A4: 22.12.2023
C5: Treatment by
C6: Dr. Roger Gmür
C7: Zürich
A9: Mr. Samuel Bob
A10: Jakarta
A11: Indonesia
A14: Description | B14: Qty | C14: Price | D14: Amount
A15: Patient: Samuel Bob, M, 04.01.1974
A17: Gut Microbiome Therapy | B17: 4 | C17: =IFERROR(VLOOKUP(A17,'Services-Produits'!A$2:B124,2,FALSE),"") -> 6912.5 | D17: =IFERROR(B17*C17,"") -> 27650
A18: Vit D3 | B18: 1 | C18: =IFERROR(VLOOKUP(A18,'Services-Produits'!A$2:B125,2,FALSE),"") -> 37 | D18: =IFERROR(B18*C18,"") -> 37
A19: Bactoflor | B19: 1 | C19: =IFERROR(VLOOKUP(A19,'Services-Produits'!A$2:B126,2,FALSE),"") -> 69.8 | D19: 69.8
A20: E-Inject | B20: 1 | C20: =IFERROR(VLOOKUP(A20,'Services-Produits'!A$2:B127,2,FALSE),"") -> 41.2 | D20: 41.2
A21: Neuro Amino | B21: 8 | C21: =IFERROR(VLOOKUP(A21,'Services-Produits'!A$2:B128,2,FALSE),"") -> 163.2 | D21: 1305.6
A22: Vit, B Komplex | B22: 1 | C22: =IFERROR(VLOOKUP(A22,'Services-Produits'!A$2:B129,2,FALSE),"") -> 46.8 | D22: 46.8
A23: Fermanose | B23: 2 | C23: =IFERROR(VLOOKUP(A23,'Services-Produits'!A$2:B130,2,FALSE),"") -> 46.2 | D23: 92.4
A24: Hydroxiprolin | B24: 1 | C24: =IFERROR(VLOOKUP(A24,'Services-Produits'!A$2:B131,2,FALSE),"") -> 68.9 | D24: 68.9
A25: Gynophilus | B25: 1 | C25: =IFERROR(VLOOKUP(A25,'Services-Produits'!A$2:B132,2,FALSE),"") -> 19.8 | D25: 19.8
A26: Magentropfen | B26: 1 | C26: =IFERROR(VLOOKUP(A26,'Services-Produits'!A$2:B133,2,FALSE),"") -> 23 | D26: 23
A27: Magnesium 1000 mg | B27: 1 | C27: =IFERROR(VLOOKUP(A27,'Services-Produits'!A$2:B134,2,FALSE),"") -> 34.68 | D27: 34.68
A28: Q10 i.v. sensitive | B28: 5 | C28: =IFERROR(VLOOKUP(A28,'Services-Produits'!A$2:B135,2,FALSE),"") -> 178.8 | D28: 894
A29: Resveratrol | B29: 8 | C29: =IFERROR(VLOOKUP(A29,'Services-Produits'!A$2:B136,2,FALSE),"") -> 178 | D29: 1424
C30: =IFERROR(VLOOKUP(A30,'Services-Produits'!A$2:B138,2,FALSE),"") -> 
C31: =IFERROR(VLOOKUP(A31,'Services-Produits'!A$2:B139,2,FALSE),"") -> 
C32: =IFERROR(VLOOKUP(A32,'Services-Produits'!A$2:B139,2,FALSE),"") -> 
C33: =IFERROR(VLOOKUP(A33,'Services-Produits'!A$2:B140,2,FALSE),"") -> 
C34: =IFERROR(VLOOKUP(A34,'Services-Produits'!A$2:B141,2,FALSE),"") -> 
C35: =IFERROR(VLOOKUP(A35,'Services-Produits'!A$2:B142,2,FALSE),"") -> 
C36: =IFERROR(VLOOKUP(A36,'Services-Produits'!A$2:B143,2,FALSE),"") -> 
A38: Total in CHF | D38: =SUM(D17:D37) -> 31707.18

Sheet Muhamad Mardiono
A3: Invoice: 55H-0231104
A4: 22.12.2023
C5: Treatment by
C6: Dr. Roger Gmür
C7: Zürich
A9: Mr. Muhamad Mardiono
A10: Jakarta
A11: Indonesia
A14: Description | B14: Qty | C14: Price | D14: Amount
A15: Patient: Muhamad Mardiono, M, 11.07.1957
A17: Gut Microbiome Therapy | B17: 4 | C17: =IFERROR(VLOOKUP(A17,'Services-Produits'!A$2:B124,2,FALSE),"") -> 6912.5 | D17: =IFERROR(B17*C17,"") -> 27650
A18: Vit D3 | B18: 1 | C18: =IFERROR(VLOOKUP(A18,'Services-Produits'!A$2:B125,2,FALSE),"") -> 37 | D18: =IFERROR(B18*C18,"") -> 37
A19: Bactoflor | B19: 1 | C19: =IFERROR(VLOOKUP(A19,'Services-Produits'!A$2:B126,2,FALSE),"") -> 69.8 | D19: 69.8
A20: E-Inject | B20: 1 | C20: =IFERROR(VLOOKUP(A20,'Services-Produits'!A$2:B127,2,FALSE),"") -> 41.2 | D20: 41.2
A21: Neuro Amino | B21: 8 | C21: =IFERROR(VLOOKUP(A21,'Services-Produits'!A$2:B128,2,FALSE),"") -> 163.2 | D21: 1305.6
A22: Vit, B Komplex | B22: 1 | C22: =IFERROR(VLOOKUP(A22,'Services-Produits'!A$2:B129,2,FALSE),"") -> 46.8 | D22: 46.8
A23: Fermanose | B23: 2 | C23: =IFERROR(VLOOKUP(A23,'Services-Produits'!A$2:B130,2,FALSE),"") -> 46.2 | D23: 92.4
A24: Hydroxiprolin | B24: 1 | C24: =IFERROR(VLOOKUP(A24,'Services-Produits'!A$2:B131,2,FALSE),"") -> 68.9 | D24: 68.9
A25: Gynophilus | B25: 1 | C25: =IFERROR(VLOOKUP(A25,'Services-Produits'!A$2:B132,2,FALSE),"") -> 19.8 | D25: 19.8
A26: Magentropfen | B26: 1 | C26: =IFERROR(VLOOKUP(A26,'Services-Produits'!A$2:B133,2,FALSE),"") -> 23 | D26: 23
A27: Magnesium 1000 mg | B27: 1 | C27: =IFERROR(VLOOKUP(A27,'Services-Produits'!A$2:B134,2,FALSE),"") -> 34.68 | D27: 34.68
A28: Q10 i.v. sensitive | B28: 5 | C28: =IFERROR(VLOOKUP(A28,'Services-Produits'!A$2:B135,2,FALSE),"") -> 178.8 | D28: 894
A29: Resveratrol | B29: 8 | C29: =IFERROR(VLOOKUP(A29,'Services-Produits'!A$2:B136,2,FALSE),"") -> 178 | D29: 1424
C30: =IFERROR(VLOOKUP(A30,'Services-Produits'!A$2:B138,2,FALSE),"") -> 
C31: =IFERROR(VLOOKUP(A31,'Services-Produits'!A$2:B139,2,FALSE),"") -> 
C32: =IFERROR(VLOOKUP(A32,'Services-Produits'!A$2:B139,2,FALSE),"") -> 
C33: =IFERROR(VLOOKUP(A33,'Services-Produits'!A$2:B140,2,FALSE),"") -> 
C34: =IFERROR(VLOOKUP(A34,'Services-Produits'!A$2:B141,2,FALSE),"") -> 
C35: =IFERROR(VLOOKUP(A35,'Services-Produits'!A$2:B142,2,FALSE),"") -> 
C36: =IFERROR(VLOOKUP(A36,'Services-Produits'!A$2:B143,2,FALSE),"") -> 
A38: Total in CHF | D38: =SUM(D17:D37) -> 31707.18

Sheet ref
A3: Invoice: 55H-0231104
A4: 22.12.2023
C5: Treatment by
C6: Dr. Roger Gmür
C7: Zürich
A9: Mr. Herman Herry Adranacus
A10: Jakarta
A11: Indonesia
A14: Description | B14: Qty | C14: Price | D14: Amount
A15: Patient: Herman Herry Adranacus, M, 26.11.1962
A17: Gut Microbiome Therapy | B17: 4 | C17: =IFERROR(VLOOKUP(A17,'Services-Produits'!A$2:B124,2,FALSE),"") -> 6912.5 | D17: =IFERROR(B17*C17,"") -> 27650
A18: Vit D3 | B18: 1 | C18: =IFERROR(VLOOKUP(A18,'Services-Produits'!A$2:B125,2,FALSE),"") -> 37 | D18: =IFERROR(B18*C18,"") -> 37
A19: Bactoflor | B19: 1 | C19: =IFERROR(VLOOKUP(A19,'Services-Produits'!A$2:B126,2,FALSE),"") -> 69.8 | D19: 69.8
A20: E-Inject | B20: 1 | C20: =IFERROR(VLOOKUP(A20,'Services-Produits'!A$2:B127,2,FALSE),"") -> 41.2 | D20: 41.2
A21: Neuro Amino | B21: 8 | C21: =IFERROR(VLOOKUP(A21,'Services-Produits'!A$2:B128,2,FALSE),"") -> 163.2 | D21: 1305.6
A22: Vit, B Komplex | B22: 1 | C22: =IFERROR(VLOOKUP(A22,'Services-Produits'!A$2:B129,2,FALSE),"") -> 46.8 | D22: 46.8
A23: Fermanose | B23: 2 | C23: =IFERROR(VLOOKUP(A23,'Services-Produits'!A$2:B130,2,FALSE),"") -> 46.2 | D23: 92.4
A24: Hydroxiprolin | B24: 1 | C24: =IFERROR(VLOOKUP(A24,'Services-Produits'!A$2:B131,2,FALSE),"") -> 68.9 | D24: 68.9
A25: Gynophilus | B25: 1 | C25: =IFERROR(VLOOKUP(A25,'Services-Produits'!A$2:B132,2,FALSE),"") -> 19.8 | D25: 19.8
A26: Magentropfen | B26: 1 | C26: =IFERROR(VLOOKUP(A26,'Services-Produits'!A$2:B133,2,FALSE),"") -> 23 | D26: 23
A27: Magnesium 1000 mg | B27: 1 | C27: =IFERROR(VLOOKUP(A27,'Services-Produits'!A$2:B134,2,FALSE),"") -> 34.68 | D27: 34.68
A28: Q10 i.v. sensitive | B28: 5 | C28: =IFERROR(VLOOKUP(A28,'Services-Produits'!A$2:B135,2,FALSE),"") -> 178.8 | D28: 894
A29: Resveratrol | B29: 8 | C29: =IFERROR(VLOOKUP(A29,'Services-Produits'!A$2:B136,2,FALSE),"") -> 178 | D29: 1424
C30: =IFERROR(VLOOKUP(A30,'Services-Produits'!A$2:B138,2,FALSE),"") -> 
C31: =IFERROR(VLOOKUP(A31,'Services-Produits'!A$2:B139,2,FALSE),"") -> 
C32: =IFERROR(VLOOKUP(A32,'Services-Produits'!A$2:B139,2,FALSE),"") -> 
C33: =IFERROR(VLOOKUP(A33,'Services-Produits'!A$2:B140,2,FALSE),"") -> 
C34: =IFERROR(VLOOKUP(A34,'Services-Produits'!A$2:B141,2,FALSE),"") -> 
C35: =IFERROR(VLOOKUP(A35,'Services-Produits'!A$2:B142,2,FALSE),"") -> 
C36: =IFERROR(VLOOKUP(A36,'Services-Produits'!A$2:B143,2,FALSE),"") -> 
A38: Total in CHF | D38: =SUM(D17:D37) -> 31707.18

Sheet Herman Herry Adranacus
A3: Invoice: 55H-0231104
A4: 22.12.2023
C5: Treatment by
C6: Dr. Roger Gmür
C7: Zürich
A9: Mr. Herman Herry Adranacus
A10: Jakarta
A11: Indonesia
A14: Description | B14: Qty | C14: Price | D14: Amount
A15: Patient: Herman Herry Adranacus, M, 26.11.1962
A17: Gut Microbiome Therapy | B17: 4 | C17: =IFERROR(VLOOKUP(A17,'Services-Produits'!A$2:B124,2,FALSE),"") -> 6912.5 | D17: =IFERROR(B17*C17,"") -> 27650
A18: Vit D3 | B18: 1 | C18: =IFERROR(VLOOKUP(A18,'Services-Produits'!A$2:B125,2,FALSE),"") -> 37 | D18: =IFERROR(B18*C18,"") -> 37
A19: Bactoflor | B19: 1 | C19: =IFERROR(VLOOKUP(A19,'Services-Produits'!A$2:B126,2,FALSE),"") -> 69.8 | D19: 69.8
A20: E-Inject | B20: 1 | C20: =IFERROR(VLOOKUP(A20,'Services-Produits'!A$2:B127,2,FALSE),"") -> 41.2 | D20: 41.2
A21: Neuro Amino | B21: 8 | C21: =IFERROR(VLOOKUP(A21,'Services-Produits'!A$2:B128,2,FALSE),"") -> 163.2 | D21: 1305.6
A22: Vit, B Komplex | B22: 1 | C22: =IFERROR(VLOOKUP(A22,'Services-Produits'!A$2:B129,2,FALSE),"") -> 46.8 | D22: 46.8
A23: Fermanose | B23: 2 | C23: =IFERROR(VLOOKUP(A23,'Services-Produits'!A$2:B130,2,FALSE),"") -> 46.2 | D23: 92.4
A24: Hydroxiprolin | B24: 1 | C24: =IFERROR(VLOOKUP(A24,'Services-Produits'!A$2:B131,2,FALSE),"") -> 68.9 | D24: 68.9
A25: Gynophilus | B25: 1 | C25: =IFERROR(VLOOKUP(A25,'Services-Produits'!A$2:B132,2,FALSE),"") -> 19.8 | D25: 19.8
A26: Magentropfen | B26: 1 | C26: =IFERROR(VLOOKUP(A26,'Services-Produits'!A$2:B133,2,FALSE),"") -> 23 | D26: 23
A27: Magnesium 1000 mg | B27: 1 | C27: =IFERROR(VLOOKUP(A27,'Services-Produits'!A$2:B134,2,FALSE),"") -> 34.68 | D27: 34.68
A28: Q10 i.v. sensitive | B28: 5 | C28: =IFERROR(VLOOKUP(A28,'Services-Produits'!A$2:B135,2,FALSE),"") -> 178.8 | D28: 894
A29: Resveratrol | B29: 8 | C29: =IFERROR(VLOOKUP(A29,'Services-Produits'!A$2:B136,2,FALSE),"") -> 178 | D29: 1424
A30: Ventrisana | B30: 4 | C30: =IFERROR(VLOOKUP(A30,'Services-Produits'!A$2:B138,2,FALSE),"") -> 19.2 | D30: 76.8
C31: =IFERROR(VLOOKUP(A31,'Services-Produits'!A$2:B139,2,FALSE),"") -> 
C32: =IFERROR(VLOOKUP(A32,'Services-Produits'!A$2:B139,2,FALSE),"") -> 
C33: =IFERROR(VLOOKUP(A33,'Services-Produits'!A$2:B140,2,FALSE),"") -> 
C34: =IFERROR(VLOOKUP(A34,'Services-Produits'!A$2:B141,2,FALSE),"") -> 
C35: =IFERROR(VLOOKUP(A35,'Services-Produits'!A$2:B142,2,FALSE),"") -> 
C36: =IFERROR(VLOOKUP(A36,'Services-Produits'!A$2:B143,2,FALSE),"") -> 
A38: Total in CHF | D38: =SUM(D17:D37) -> 31783.98

Sheet Salim Lan Jaya Liem
A3: Invoice: 55H-0231104
A4: =" 12.12.2023" -> 12.12.2023
C5: Treatment by
C6: Dr. Roger Gmür
C7: Zürich
A9: Mr. Salim Lan Jaya Liem
A10: Jakarta
A11: Indonesia
A14: Description | B14: Qty | C14: Price | D14: Amount
A15: Patient: Salim Lan Jaya Liem, M, 01.06.1971
A17: Gut Microbiome Therapy | B17: 4 | C17: =IFERROR(VLOOKUP(A17,'Services-Produits'!A$2:B124,2,FALSE),"") -> 6912.5 | D17: =IFERROR(B17*C17,"") -> 27650
A18: Vit D3 | B18: 1 | C18: =IFERROR(VLOOKUP(A18,'Services-Produits'!A$2:B125,2,FALSE),"") -> 37 | D18: =IFERROR(B18*C18,"") -> 37
A19: Bactoflor | B19: 1 | C19: =IFERROR(VLOOKUP(A19,'Services-Produits'!A$2:B126,2,FALSE),"") -> 69.8 | D19: 69.8
A20: E-Inject | B20: 1 | C20: =IFERROR(VLOOKUP(A20,'Services-Produits'!A$2:B127,2,FALSE),"") -> 41.2 | D20: 41.2
A21: Neuro Amino | B21: 8 | C21: =IFERROR(VLOOKUP(A21,'Services-Produits'!A$2:B128,2,FALSE),"") -> 163.2 | D21: 1305.6
A22: Vit, B Komplex | B22: 1 | C22: =IFERROR(VLOOKUP(A22,'Services-Produits'!A$2:B129,2,FALSE),"") -> 46.8 | D22: 46.8
A23: Fermanose | B23: 2 | C23: =IFERROR(VLOOKUP(A23,'Services-Produits'!A$2:B130,2,FALSE),"") -> 46.2 | D23: 92.4
A24: Hydroxiprolin | B24: 1 | C24: =IFERROR(VLOOKUP(A24,'Services-Produits'!A$2:B131,2,FALSE),"") -> 68.9 | D24: 68.9
A25: Gynophilus | B25: 1 | C25: =IFERROR(VLOOKUP(A25,'Services-Produits'!A$2:B132,2,FALSE),"") -> 19.8 | D25: 19.8
A26: Magentropfen | B26: 1 | C26: =IFERROR(VLOOKUP(A26,'Services-Produits'!A$2:B133,2,FALSE),"") -> 23 | D26: 23
A27: Magnesium 1000 mg | B27: 1 | C27: =IFERROR(VLOOKUP(A27,'Services-Produits'!A$2:B134,2,FALSE),"") -> 34.68 | D27: 34.68
A28: Q10 i.v. sensitive | B28: 5 | C28: =IFERROR(VLOOKUP(A28,'Services-Produits'!A$2:B135,2,FALSE),"") -> 178.8 | D28: 894
A29: Resveratrol | B29: 8 | C29: =IFERROR(VLOOKUP(A29,'Services-Produits'!A$2:B136,2,FALSE),"") -> 178 | D29: 1424
A30: Vistabel 3 zones | B30: 3 | C30: =IFERROR(VLOOKUP(A30,'Services-Produits'!A$2:B138,2,FALSE),"") -> 750 | D30: 2250
A31: Vistabel 3 zones | B31: 4 | C31: =IFERROR(VLOOKUP(A31,'Services-Produits'!A$2:B139,2,FALSE),"") -> 750 | D31: 3000
A32: Xanax | C32: =IFERROR(VLOOKUP(A32,'Services-Produits'!A$2:B139,2,FALSE),"") -> 42.7 | D32: 0
A33: Vit. C, Zn | C33: =IFERROR(VLOOKUP(A33,'Services-Produits'!A$2:B140,2,FALSE),"") -> 21.4 | D33: 0
C34: =IFERROR(VLOOKUP(A34,'Services-Produits'!A$2:B141,2,FALSE),"") -> 
C35: =IFERROR(VLOOKUP(A35,'Services-Produits'!A$2:B142,2,FALSE),"") -> 
C36: =IFERROR(VLOOKUP(A36,'Services-Produits'!A$2:B143,2,FALSE),"") -> 
A38: Total in CHF | D38: =SUM(D17:D37) -> 36957.18

Sheet Adex Yudiswan
A3: Invoice: 55H-0231104
A4: =" 12.12.2023" -> 12.12.2023
C5: Treatment by
C6: Dr. Roger Gmür
C7: Zürich
A9: Mr. Adex Yudiswan
A10: Jakarta
A11: Indonesia
A14: Description | B14: Qty | C14: Price | D14: Amount
A15: Patient: Adex Yudiswan, M, 03.12.1974
A17: Gut Microbiome Therapy | B17: 4 | C17: =IFERROR(VLOOKUP(A17,'Services-Produits'!A$2:B124,2,FALSE),"") -> 6912.5 | D17: =IFERROR(B17*C17,"") -> 27650
A18: Vit D3 | B18: 1 | C18: =IFERROR(VLOOKUP(A18,'Services-Produits'!A$2:B125,2,FALSE),"") -> 37 | D18: =IFERROR(B18*C18,"") -> 37
A19: Bactoflor | B19: 1 | C19: =IFERROR(VLOOKUP(A19,'Services-Produits'!A$2:B126,2,FALSE),"") -> 69.8 | D19: 69.8
A20: E-Inject | B20: 1 | C20: =IFERROR(VLOOKUP(A20,'Services-Produits'!A$2:B127,2,FALSE),"") -> 41.2 | D20: 41.2
A21: Neuro Amino | B21: 8 | C21: =IFERROR(VLOOKUP(A21,'Services-Produits'!A$2:B128,2,FALSE),"") -> 163.2 | D21: 1305.6
A22: Vit, B Komplex | B22: 1 | C22: =IFERROR(VLOOKUP(A22,'Services-Produits'!A$2:B129,2,FALSE),"") -> 46.8 | D22: 46.8
A23: Fermanose | B23: 2 | C23: =IFERROR(VLOOKUP(A23,'Services-Produits'!A$2:B130,2,FALSE),"") -> 46.2 | D23: 92.4
A24: Hydroxiprolin | B24: 1 | C24: =IFERROR(VLOOKUP(A24,'Services-Produits'!A$2:B131,2,FALSE),"") -> 68.9 | D24: 68.9
A25: Gynophilus | B25: 1 | C25: =IFERROR(VLOOKUP(A25,'Services-Produits'!A$2:B132,2,FALSE),"") -> 19.8 | D25: 19.8
A26: Magentropfen | B26: 1 | C26: =IFERROR(VLOOKUP(A26,'Services-Produits'!A$2:B133,2,FALSE),"") -> 23 | D26: 23
A27: Magnesium 1000 mg | B27: 1 | C27: =IFERROR(VLOOKUP(A27,'Services-Produits'!A$2:B134,2,FALSE),"") -> 34.68 | D27: 34.68
A28: Q10 i.v. sensitive | B28: 5 | C28: =IFERROR(VLOOKUP(A28,'Services-Produits'!A$2:B135,2,FALSE),"") -> 178.8 | D28: 894
A29: Resveratrol | B29: 8 | C29: =IFERROR(VLOOKUP(A29,'Services-Produits'!A$2:B136,2,FALSE),"") -> 178 | D29: 1424
A30: Infraorbital | B30: 1 | C30: =IFERROR(VLOOKUP(A30,'Services-Produits'!A$2:B137,2,FALSE),"") -> 600 | D30: 600
C31: =IFERROR(VLOOKUP(A31,'Services-Produits'!A$2:B138,2,FALSE),"") -> 
C32: =IFERROR(VLOOKUP(#REF!,'Services-Produits'!A$2:B139,2,FALSE),"") -> 
C33: =IFERROR(VLOOKUP(A32,'Services-Produits'!A$2:B140,2,FALSE),"") -> 
C34: =IFERROR(VLOOKUP(A34,'Services-Produits'!A$2:B141,2,FALSE),"") -> 
C35: =IFERROR(VLOOKUP(A35,'Services-Produits'!A$2:B142,2,FALSE),"") -> 
C36: =IFERROR(VLOOKUP(A36,'Services-Produits'!A$2:B143,2,FALSE),"") -> 
A38: Total in CHF | D38: =SUM(D17:D37) -> 32307.18

Sheet Sri Wahyuswinta
A3: Invoice: 55H-0231104
A4: =" 12.12.2023" -> 12.12.2023
C5: Treatment by
C6: Dr. Roger Gmür
C7: Zürich
A9: Mrs. Sri Wahyuswinta
A10: Jakarta
A11: Indonesia
A14: Description | B14: Qty | C14: Price | D14: Amount
A15: Patient: Mrs. Sri Wahyuswinta, F, 04.04.1969
A17: Gut Microbiome Therapy | B17: 4 | C17: =IFERROR(VLOOKUP(A17,'Services-Produits'!A1:B120,2,FALSE),"") -> 6912.5 | D17: =IFERROR(B17*C17,"") -> 27650
A18: Vit D3 | B18: 1 | C18: =IFERROR(VLOOKUP(A18,'Services-Produits'!A2:B121,2,FALSE),"") -> 37 | D18: =IFERROR(B18*C18,"") -> 37
A19: Biotin | B19: 1 | C19: =IFERROR(VLOOKUP(A19,'Services-Produits'!A3:B122,2,FALSE),"") -> 37.25 | D19: 37.25
A20: E-Inject | B20: 1 | C20: =IFERROR(VLOOKUP(A20,'Services-Produits'!A4:B123,2,FALSE),"") -> 41.2 | D20: 41.2
A21: Neuro Amino | B21: 8 | C21: =IFERROR(VLOOKUP(A21,'Services-Produits'!A5:B124,2,FALSE),"") -> 163.2 | D21: 1305.6
A22: Vit, B Komplex | B22: 1 | C22: =IFERROR(VLOOKUP(A22,'Services-Produits'!A6:B125,2,FALSE),"") -> 46.8 | D22: 46.8
A23: Fermanose | B23: 2 | C23: =IFERROR(VLOOKUP(A23,'Services-Produits'!A7:B126,2,FALSE),"") -> 46.2 | D23: 92.4
A24: Hydroxiprolin | B24: 1 | C24: =IFERROR(VLOOKUP(A24,'Services-Produits'!A8:B127,2,FALSE),"") -> 68.9 | D24: 68.9
A25: Gynophilus | B25: 1 | C25: =IFERROR(VLOOKUP(A25,'Services-Produits'!A9:B128,2,FALSE),"") -> 19.8 | D25: 19.8
A26: Magentropfen | B26: 1 | C26: =IFERROR(VLOOKUP(A26,'Services-Produits'!A10:B129,2,FALSE),"") -> 23 | D26: 23
A27: Magnesium 1000 mg | B27: 1 | C27: =IFERROR(VLOOKUP(A27,'Services-Produits'!A11:B130,2,FALSE),"") -> 34.68 | D27: 34.68
A28: Q10 i.v. sensitive | B28: 5 | C28: =IFERROR(VLOOKUP(A28,'Services-Produits'!A12:B131,2,FALSE),"") -> 178.8 | D28: 894
A29: Resveratrol | B29: 8 | C29: =IFERROR(VLOOKUP(A29,'Services-Produits'!A13:B132,2,FALSE),"") -> 178 | D29: 1424
A30: Selenium | B30: 2 | C30: =IFERROR(VLOOKUP(A30,'Services-Produits'!A14:B133,2,FALSE),"") -> 41.6 | D30: 83.2
A31: Infusion: Shoga Öl | B31: 11 | C31: =IFERROR(VLOOKUP(A31,'Services-Produits'!A8:B127,2,FALSE),"") -> 670 | D31: 7370
A32: Tadalafil-Mepha 2.5 mg | B32: 6 | C32: =IFERROR(VLOOKUP(A32,'Services-Produits'!A9:B128,2,FALSE),"") -> 115 | D32: 690
A33: Ventrisana | B33: 1 | C33: =IFERROR(VLOOKUP(A33,'Services-Produits'!A10:B129,2,FALSE),"") -> 19.2 | D33: 19.2
A34: Xanax | B34: 1 | C34: =IFERROR(VLOOKUP(A34,'Services-Produits'!A11:B130,2,FALSE),"") -> 42.7 | D34: 42.7
A35: Vistabel 3 zones | B35: 5 | C35: =IFERROR(VLOOKUP(A35,'Services-Produits'!A12:B131,2,FALSE),"") -> 750 | D35: 3750
A36: Jantung (Herz) | B36: 3 | C36: =IFERROR(VLOOKUP(A36,'Services-Produits'!A13:B132,2,FALSE),"") -> 584.5 | D36: 1753.5
C37: =IFERROR(VLOOKUP(A37,'Services-Produits'!A14:B133,2,FALSE),"") -> 
A38: Total in CHF | D38: =SUM(D17:D37) -> 45383.23
A40: Thank you very much for your trust!

Sheet Armand Wahyudi Hartono
A3: Invoice: 55H-0231104
A4: =" 12.12.2023" -> 12.12.2023
C5: Treatment by
C6: Dr. Roger Gmür
C7: Zürich
A14: Description | B14: Qty | C14: Price | D14: Amount
A17: Gut Microbiome Therapy | B17: 4 | C17: =IFERROR(VLOOKUP(A17,'Services-Produits'!A1:B120,2,FALSE),"") -> 6912.5 | D17: =IFERROR(B17*C17,"") -> 27650
A18: Vit D3 | B18: 1 | C18: =IFERROR(VLOOKUP(A18,'Services-Produits'!A2:B121,2,FALSE),"") -> 37 | D18: =IFERROR(B18*C18,"") -> 37
A19: Biotin | B19: 1 | C19: =IFERROR(VLOOKUP(A19,'Services-Produits'!A3:B122,2,FALSE),"") -> 37.25 | D19: 37.25
A20: E-Inject | B20: 1 | C20: =IFERROR(VLOOKUP(A20,'Services-Produits'!A4:B123,2,FALSE),"") -> 41.2 | D20: 41.2
A21: Neuro Amino | B21: 8 | C21: =IFERROR(VLOOKUP(A21,'Services-Produits'!A5:B124,2,FALSE),"") -> 163.2 | D21: 1305.6
A22: Vit, B Komplex | B22: 1 | C22: =IFERROR(VLOOKUP(A22,'Services-Produits'!A6:B125,2,FALSE),"") -> 46.8 | D22: 46.8
A23: Fermanose | B23: 2 | C23: =IFERROR(VLOOKUP(A23,'Services-Produits'!A7:B126,2,FALSE),"") -> 46.2 | D23: 92.4
A24: Gynophilus | B24: 1 | C24: =IFERROR(VLOOKUP(#REF!,'Services-Produits'!A8:B127,2,FALSE),"") ->  | D24: =IFERROR(#REF!*C24,"") -> 
A25: Magentropfen | B25: 1 | C25: =IFERROR(VLOOKUP(A24,'Services-Produits'!A9:B128,2,FALSE),"") -> 19.8 | D25: =IFERROR(B24*C25,"") -> 19.8
A26: Magnesium 1000 mg | B26: 1 | C26: =IFERROR(VLOOKUP(A25,'Services-Produits'!A10:B129,2,FALSE),"") -> 23 | D26: =IFERROR(B25*C26,"") -> 23
C27: =IFERROR(VLOOKUP(A26,'Services-Produits'!A11:B130,2,FALSE),"") -> 34.68 | D27: =IFERROR(B26*C27,"") -> 34.68
A28: Q10 i.v. sensitive | B28: 5 | C28: =IFERROR(VLOOKUP(A28,'Services-Produits'!A12:B131,2,FALSE),"") -> 178.8 | D28: 894
A29: Resveratrol | B29: 8 | C29: =IFERROR(VLOOKUP(A29,'Services-Produits'!A13:B132,2,FALSE),"") -> 178 | D29: 1424
A30: Phenylalanine | B30: 4 | C30: =IFERROR(VLOOKUP(A30,'Services-Produits'!A14:B133,2,FALSE),"") -> 106.4 | D30: 425.6
A31: RNA | B31: 2 | C31: =IFERROR(VLOOKUP(A31,'Services-Produits'!A8:B127,2,FALSE),"") -> 516.7 | D31: 1033.4
A32: Vit, B Komplex | B32: 5 | C32: =IFERROR(VLOOKUP(A32,'Services-Produits'!A9:B128,2,FALSE),"") -> 46.8 | D32: 234
C33: =IFERROR(VLOOKUP(A33,'Services-Produits'!A10:B129,2,FALSE),"") -> 
C34: =IFERROR(VLOOKUP(A34,'Services-Produits'!A11:B130,2,FALSE),"") -> 
C35: =IFERROR(VLOOKUP(A35,'Services-Produits'!A12:B131,2,FALSE),"") -> 
C36: =IFERROR(VLOOKUP(A36,'Services-Produits'!A13:B132,2,FALSE),"") -> 
C37: =IFERROR(VLOOKUP(A37,'Services-Produits'!A14:B133,2,FALSE),"") -> 
A38: Total in CHF | D38: =SUM(D17:D37) -> 33298.73
A40: Thank you very much for your trust!

Sheet Feuil2
